[Event "European Online Club-ch-G 2021"]
[Site "Online"]
[Date "2021.03.27"]
[Round "9.9"]
[White "Sevdimaliyev, Urfan"]
[Black "Bartel, Mateusz"]
[Result "0-1"]
[ECO "B04"]
[WhiteElo "2369"]
[BlackElo "2635"]
[Annotator "ChessBase"]
[PlyCount "102"]
[EventDate "2021.03.27"]
[EventType "team-tourn"]
[EventCountry "NET"]
[SourceTitle "playchess.com"]
[Source "ChessBase"]
[SourceQuality "1"]
[TimeControl "900+5"]

1. e4 {[%emt 0:00:00]} Nf6 {[%emt 0:00:22]} 2. e5 {[%emt 0:00:12]} Nd5 {[%emt 0:00:02]} 3. d4 {[%emt 0:00:02]} d6 {[%emt 0:00:03]} 4. Nf3 {[%emt 0:00:04]} Bf5 {[%emt 0:00:27]} 5. Bd3 {[%emt 0:00:09]} Bxd3 {[%emt 0:00:09]} 6. Qxd3 {[%emt 0:00:05]} e6 {[%emt 0:00:07]} 7. O-O {[%emt 0:00:10]} Nc6 {[%emt 0:00:22]} 8. exd6 {[%emt 0:01:57]} Bxd6 {[%emt 0:00:26]} 9. c4 {[%emt 0:00:15]} Nf6 {[%emt 0:00:01]} 10. Nc3 {[%emt 0:00:12]} O-O {[%emt 0:00:08]} 11. Bg5 {[%emt 0:00:07]} Be7 {[%emt 0:00:20]} 12. Rad1 {[%emt 0:00:12]} Nh5 {[%emt 0:00:05]} 13. Bxe7 {[%emt 0:00:07]} Nxe7 {[%emt 0:00:02]} 14. Qe4 {[%emt 0:00:13]} c6 {[%emt 0:00:09]} 15. Rfe1 {[%emt 0:00:25]} Nf6 {[%emt 0:00:03]} 16. Qc2 {[%emt 0:00:19]} Rc8 {[%emt 0:00:08]} 17. Ne4 {[%emt 0:00:15]} Nxe4 {[%emt 0:00:11]} 18. Qxe4 {[%emt 0:00:09]} Qa5 {[%emt 0:00:01]} 19. a3 {[%emt 0:00:11]} Rcd8 {[%emt 0:00:24]} 20. Rd3 {[%emt 0:00:41]} Nf5 {[%emt 0:02:46]} 21. Qf4 {[%emt 0:01:30]} Qa4 {[%emt 0:00:40]} 22. Rc3 {[%emt 0:00:37]} b5 {[%emt 0:00:16]} 23. Rec1 {[%emt 0:02:04]} h6 {[%emt 0:01:13]} 24. g4 {[%emt 0:00:31]} Nd6 {[%emt 0:00:25]} 25. c5 {[%emt 0:00:10]} Ne8 {[%emt 0:00:25]} 26. g5 {[%emt 0:00:36]} hxg5 {[%emt 0:00:02]} 27. Qxg5 {[%emt 0:00:04]} Rd5 {[%emt 0:00:11]} 28. Qe3 {[%emt 0:00:27]} Nf6 {[%emt 0:00:11]} 29. Kh1 {[%emt 0:00:14]} Rf5 {[%emt 0:00:18]} 30. Rg1 {[%emt 0:00:26]} Rd8 {[%emt 0:01:04]} 31. Ne5 {[%emt 0:01:01]} Qxd4 {[%emt 0:00:49]} 32. Rd3 {[%emt 0:00:46]} Qxe5 {[%emt 0:00:02]} 33. Rxd8+ {[%emt 0:00:03]} Kh7 {[%emt 0:00:02]} 34. Qxe5 {[%emt 0:00:20]} Rxe5 {[%emt 0:00:00]} 35. b4 {[%emt 0:00:06]} Re2 {[%emt 0:00:03]} 36. f3 {[%emt 0:00:44]} Re3 {[%emt 0:00:04]} 37. Rc8 {[%emt 0:00:08]} Rxf3 {[%emt 0:00:10]} 38. Rxc6 {[%emt 0:00:06]} Nd5 {[%emt 0:00:05]} 39. Ra6 {[%emt 0:00:11]} e5 {[%emt 0:00:05]} 40. Rc1 {[%emt 0:00:09]} e4 {[%emt 0:00:08]} 41. Rd6 {[%emt 0:00:22]} Nf4 {[%emt 0:00:01]} 42. c6 {[%emt 0:00:21]} e3 {[%emt 0:00:02]} 43. Rdd1 {[%emt 0:00:22]} e2 {[%emt 0:00:01]} 44. Re1 {[%emt 0:00:17]} Nd3 {[%emt 0:00:15]} 45. Rxe2 {[%emt 0:00:25]} Nxc1 {[%emt 0:00:02]} 46. Rc2 {[%emt 0:00:04]} Nd3 {[%emt 0:00:28]} 47. c7 {[%emt 0:00:39]} Ne1 {[%emt 0:00:02]} 48. Kg1 {[%emt 0:00:08]} Nxc2 {[%emt 0:00:02]} 49. c8=Q {[%emt 0:00:04]} Ne3 {[%emt 0:00:58]} 50. h3 {[%emt 0:00:11]} f5 {[%emt 0:00:30]} 51. Qb7 {[%emt 0:00:15]} Rxh3 {[%emt 0:00:04]} 0-1

[Event "European Online Club-ch-G 2021"]
[Site "Online"]
[Date "2021.03.27"]
[Round "9.10"]
[White "Mastrovasilis, Dimitrios"]
[Black "Babayev, Talib"]
[Result "1-0"]
[ECO "B18"]
[WhiteElo "2609"]
[BlackElo "2282"]
[Annotator "ChessBase"]
[PlyCount "55"]
[EventDate "2021.03.27"]
[EventType "team-tourn"]
[EventCountry "NET"]
[SourceTitle "playchess.com"]
[Source "ChessBase"]
[SourceQuality "1"]
[TimeControl "900+5"]

1. e4 {[%emt 0:00:00]} c6 {[%emt 0:00:04]} 2. d4 {[%emt 0:00:03]} d5 {[%emt 0:00:02]} 3. Nd2 {[%emt 0:00:02]} dxe4 {[%emt 0:00:03]} 4. Nxe4 {[%emt 0:00:04]} Bf5 {[%emt 0:00:02]} 5. Qf3 {[%emt 0:00:04]} e6 {[%emt 0:00:22]} 6. Ne2 {[%emt 0:00:05]} Nf6 {[%emt 0:00:23]} 7. Nxf6+ {[%emt 0:00:42]} Qxf6 {[%emt 0:00:03]} 8. Qb3 {[%emt 0:00:05]} b6 {[%emt 0:00:16]} 9. Ng3 {[%emt 0:01:39]} Bg6 {[%emt 0:00:51]} 10. Be3 {[%emt 0:00:22]} Bd6 {[%emt 0:00:03]} 11. O-O-O {[%emt 0:00:14]} O-O {[%emt 0:00:14]} 12. h4 {[%emt 0:01:03]} h6 {[%emt 0:00:10]} 13. Bd3 {[%emt 0:01:18]} Nd7 {[%emt 0:00:19]} 14. Ne4 {[%emt 0:00:24]} Qe7 {[%emt 0:00:42]} 15. Nxd6 {[%emt 0:00:56]} Bxd3 {[%emt 0:00:04]} 16. Nxf7 {[%emt 0:02:09]} Be4 {[%emt 0:00:06]} 17. Ne5 {[%emt 0:00:02]} Nxe5 {[%emt 0:00:11]} 18. dxe5 {[%emt 0:00:00]} Bxg2 {[%emt 0:00:02]} 19. Rhg1 {[%emt 0:00:02]} Bf3 {[%emt 0:01:04]} 20. Rd6 {[%emt 0:00:34]} Qxh4 {[%emt 0:00:24]} 21. Qxe6+ {[%emt 0:00:39]} Kh8 {[%emt 0:00:04]} 22. Qg6 {[%emt 0:01:00]} Qe7 {[%emt 0:01:34]} 23. Bxh6 {[%emt 0:01:35]} gxh6 {[%emt 0:00:08]} 24. Qxh6+ {[%emt 0:00:02]} Qh7 {[%emt 0:00:02]} 25. Qe3 {[%emt 0:00:58]} Rg8 {[%emt 0:03:49]} 26. Rxg8+ {[%emt 0:00:43]} Qxg8 {[%emt 0:00:04]} 27. Rh6+ {[%emt 0:00:25]} Kg7 {[%emt 0:00:05]} 28. Qg5+ {[%emt 0:00:07]} 1-0

[Event "European Online Club-ch-G 2021"]
[Site "Online"]
[Date "2021.03.27"]
[Round "9.11"]
[White "Gasimov, Parviz"]
[Black "Wieczorek, Oskar"]
[Result "1-0"]
[ECO "C54"]
[WhiteElo "2337"]
[BlackElo "2498"]
[Annotator "ChessBase"]
[PlyCount "103"]
[EventDate "2021.03.27"]
[EventType "team-tourn"]
[EventCountry "NET"]
[SourceTitle "playchess.com"]
[Source "ChessBase"]
[SourceQuality "1"]
[TimeControl "900+5"]

1. e4 {[%emt 0:00:00]} e5 {[%emt 0:00:02]} 2. Bc4 {[%emt 0:00:04]} Nc6 {[%emt 0:00:08]} 3. Nf3 {[%emt 0:00:03]} Bc5 {[%emt 0:00:03]} 4. c3 {[%emt 0:00:02]} Nf6 {[%emt 0:00:02]} 5. d3 {[%emt 0:00:01]} d6 {[%emt 0:00:02]} 6. a4 {[%emt 0:00:06]} a5 {[%emt 0:00:05]} 7. Na3 {[%emt 0:00:17]} h6 {[%emt 0:00:09]} 8. Nc2 {[%emt 0:00:15]} d5 {[%emt 0:00:41]} 9. exd5 {[%emt 0:00:27]} Nxd5 {[%emt 0:00:00]} 10. O-O {[%emt 0:00:15]} O-O {[%emt 0:00:05]} 11. d4 {[%emt 0:02:47]} exd4 {[%emt 0:00:00]} 12. Ncxd4 {[%emt 0:00:30]} Bg4 {[%emt 0:02:17]} 13. h3 {[%emt 0:01:21]} Bh5 {[%emt 0:00:20]} 14. g4 {[%emt 0:00:28]} Bg6 {[%emt 0:01:03]} 15. Nxc6 {[%emt 0:00:13]} bxc6 {[%emt 0:00:00]} 16. Ne5 {[%emt 0:00:03]} Qh4 {[%emt 0:00:28]} 17. Qf3 {[%emt 0:00:46]} Rae8 {[%emt 0:00:22]} 18. Bxd5 {[%emt 0:03:58]} Rxe5 {[%emt 0:00:57]} 19. Bxc6 {[%emt 0:00:18]} f5 {[%emt 0:00:12]} 20. Be3 {[%emt 0:01:10]} fxg4 {[%emt 0:03:03]} 21. Qxg4 {[%emt 0:00:11]} Qf6 {[%emt 0:00:50]} 22. Bg2 {[%emt 0:00:36]} Bd3 {[%emt 0:00:39]} 23. Bxc5 {[%emt 0:00:29]} Rg5 {[%emt 0:03:14]} 24. Qxg5 {[%emt 0:01:18]} Qxg5 {[%emt 0:00:09]} 25. Bxf8 {[%emt 0:00:02]} Bxf1 {[%emt 0:00:07]} 26. Rxf1 {[%emt 0:00:18]} Kxf8 {[%emt 0:00:02]} 27. b4 {[%emt 0:00:03]} Qf4 {[%emt 0:01:28]} 28. Rb1 {[%emt 0:00:51]} Qf5 {[%emt 0:00:11]} 29. Rd1 {[%emt 0:00:09]} Qc2 {[%emt 0:00:30]} 30. Rd8+ {[%emt 0:00:10]} Ke7 {[%emt 0:00:01]} 31. Ra8 {[%emt 0:00:02]} Qxa4 {[%emt 0:00:18]} 32. bxa5 {[%emt 0:00:04]} Qa1+ {[%emt 0:00:01]} 33. Kh2 {[%emt 0:00:03]} Qxc3 {[%emt 0:00:01]} 34. a6 {[%emt 0:00:03]} Qe5+ {[%emt 0:00:02]} 35. Kg1 {[%emt 0:00:02]} Qa1+ {[%emt 0:00:04]} 36. Bf1 {[%emt 0:00:16]} g5 {[%emt 0:00:13]} 37. a7 {[%emt 0:00:05]} h5 {[%emt 0:00:07]} 38. Kg2 {[%emt 0:00:17]} Qa2 {[%emt 0:00:02]} 39. Kg1 {[%emt 0:00:03]} g4 {[%emt 0:00:05]} 40. hxg4 {[%emt 0:00:03]} hxg4 {[%emt 0:00:00]} 41. Bg2 {[%emt 0:00:02]} Qa1+ {[%emt 0:00:06]} 42. Kh2 {[%emt 0:00:02]} Qe5+ {[%emt 0:00:02]} 43. Kg1 {[%emt 0:00:02]} Qa1+ {[%emt 0:00:05]} 44. Bf1 {[%emt 0:00:04]} Kf7 {[%emt 0:00:12]} 45. Kg2 {[%emt 0:00:08]} Qa2 {[%emt 0:00:06]} 46. Kg3 {[%emt 0:00:16]} Kg7 {[%emt 0:00:03]} 47. Bg2 {[%emt 0:00:05]} Kh7 {[%emt 0:00:08]} 48. Rh8+ {[%emt 0:00:03]} Kxh8 {[%emt 0:00:02]} 49. a8=Q+ {[%emt 0:00:03]} Qxa8 {[%emt 0:00:03]} 50. Bxa8 {[%emt 0:00:03]} Kg7 {[%emt 0:00:02]} 51. Kxg4 {[%emt 0:00:01]} Kf6 {[%emt 0:00:00]} 52. Kf4 {[%emt 0:00:03]} 1-0

[Event "European Online Club-ch-G 2021"]
[Site "Online"]
[Date "2021.03.27"]
[Round "9.12"]
[White "Zawadzka, Jolanta"]
[Black "Hasanzade, Toghrul"]
[Result "1-0"]
[ECO "C11"]
[WhiteElo "2399"]
[BlackElo "2322"]
[Annotator "NA"]
[PlyCount "97"]
[EventDate "2021.03.27"]
[EventType "team-tourn"]
[EventCountry "NET"]
[SourceTitle "playchess.com"]
[Source "ChessBase"]
[SourceQuality "1"]
[TimeControl "900+5"]

1. e4 {[%emt 0:00:00]} e6 {[%emt 0:00:08]} 2. d4 {[%emt 0:00:03]} d5 {[%emt 0:00:03]} 3. Nc3 {[%emt 0:00:01]} Nf6 {[%emt 0:00:04]} 4. e5 {[%emt 0:00:02]} Nfd7 {[%emt 0:00:02]} 5. f4 {[%emt 0:00:01]} c5 {[%emt 0:00:04]} 6. Nf3 {[%emt 0:00:01]} Nc6 {[%emt 0:00:02]} 7. Be3 {[%emt 0:00:02]} cxd4 {[%emt 0:00:01]} 8. Nxd4 {[%emt 0:00:03]} Bc5 {[%emt 0:00:04]} 9. Qd2 {[%emt 0:00:16]} O-O {[%emt 0:00:04]} 10. O-O-O {[%emt 0:00:11]} Nxd4 {[%emt 0:00:03]} 11. Bxd4 {[%emt 0:00:01]} a6 {[%emt 0:00:01]} 12. h4 {[%emt 0:00:06]} b5 {[%emt 0:00:07]} 13. Kb1 {[%emt 0:00:03]} Qc7 {[%emt 0:00:17]} 14. h5 {[%emt 0:00:21]} Bxd4 {[%emt 0:00:06]} 15. Qxd4 {[%emt 0:00:02]} Nc5 {[%emt 0:00:05]} 16. g4 {[%emt 0:02:22]} Bd7 {[%emt 0:00:28]} 17. Bd3 {[%emt 0:00:21]} b4 {[%emt 0:00:14]} 18. Ne2 {[%emt 0:00:15]} Rfc8 {[%emt 0:00:16]} 19. Rc1 {[%emt 0:00:25]} a5 {[%emt 0:00:21]} 20. g5 {[%emt 0:00:19]} a4 {[%emt 0:00:30]} 21. g6 {[%emt 0:00:52]} fxg6 {[%emt 0:00:13]} 22. hxg6 {[%emt 0:00:03]} h6 {[%emt 0:00:05]} 23. f5 {[%emt 0:00:51]} exf5 {[%emt 0:00:12]} 24. Nf4 {[%emt 0:00:26]} Ne6 {[%emt 0:00:17]} 25. Qxd5 {[%emt 0:01:16]} Ra5 {[%emt 0:00:18]} 26. Nxe6 {[%emt 0:01:06]} Rxd5 {[%emt 0:00:05]} 27. Nxc7 {[%emt 0:00:01]} Rxc7 {[%emt 0:00:01]} 28. Rce1 {[%emt 0:01:11]} Be6 {[%emt 0:01:26]} 29. Rh4 {[%emt 0:00:10]} b3 {[%emt 0:00:30]} 30. Rxa4 {[%emt 0:00:47]} bxa2+ {[%emt 0:00:19]} 31. Rxa2 {[%emt 0:00:10]} Kf8 {[%emt 0:00:19]} 32. b3 {[%emt 0:00:54]} Rd4 {[%emt 0:00:23]} 33. Rf1 {[%emt 0:00:30]} f4 {[%emt 0:01:29]} 34. Ra4 {[%emt 0:00:11]} Rxa4 {[%emt 0:00:20]} 35. bxa4 {[%emt 0:00:00]} Rc5 {[%emt 0:00:09]} 36. Rxf4+ {[%emt 0:00:04]} Ke7 {[%emt 0:00:02]} 37. Re4 {[%emt 0:01:08]} h5 {[%emt 0:00:07]} 38. Kb2 {[%emt 0:00:14]} Bd5 {[%emt 0:00:20]} 39. Rh4 {[%emt 0:00:28]} Bf3 {[%emt 0:00:07]} 40. Rf4 {[%emt 0:00:02]} Bd5 {[%emt 0:00:18]} 41. Rf5 {[%emt 0:00:30]} h4 {[%emt 0:00:37]} 42. Rh5 {[%emt 0:00:03]} Be6 {[%emt 0:00:14]} 43. Rxh4 {[%emt 0:00:05]} Rxe5 {[%emt 0:00:03]} 44. Rb4 {[%emt 0:00:02]} Kf6 {[%emt 0:00:12]} 45. Rb5 {[%emt 0:00:08]} Re1 {[%emt 0:00:08]} 46. a5 {[%emt 0:00:10]} Bh3 {[%emt 0:00:23]} 47. a6 {[%emt 0:00:19]} Bg2 {[%emt 0:00:01]} 48. Rf5+ {[%emt 0:00:09]} Ke6 {[%emt 0:00:04]} 49. Rf7 {[%emt 0:00:05]} 1-0

[Event "European Online Club-ch-G 2021"]
[Site "Online"]
[Date "2021.03.27"]
[Round "9.13"]
[White "Mica, Marek"]
[Black "Dreev, Aleksey"]
[Result "0-1"]
[ECO "E01"]
[WhiteElo "2274"]
[BlackElo "2647"]
[Annotator "ChessBase"]
[PlyCount "120"]
[EventDate "2021.03.27"]
[EventType "team-tourn"]
[EventCountry "NET"]
[SourceTitle "playchess.com"]
[Source "ChessBase"]
[SourceQuality "1"]
[TimeControl "900+5"]

1. d4 {[%emt 0:00:00]} d5 {[%emt 0:00:06]} 2. c4 {[%emt 0:00:05]} e6 {[%emt 0:00:03]} 3. Nf3 {[%emt 0:00:06]} Nf6 {[%emt 0:00:06]} 4. g3 {[%emt 0:00:21]} Bb4+ {[%emt 0:00:04]} 5. Bd2 {[%emt 0:00:05]} Bd6 {[%emt 0:00:01]} 6. Bg2 {[%emt 0:00:10]} O-O {[%emt 0:00:06]} 7. O-O {[%emt 0:00:06]} c6 {[%emt 0:00:06]} 8. Qc2 {[%emt 0:00:12]} Nbd7 {[%emt 0:00:03]} 9. Nc3 {[%emt 0:01:08]} dxc4 {[%emt 0:00:05]} 10. e4 {[%emt 0:00:05]} e5 {[%emt 0:00:59]} 11. Be3 {[%emt 0:00:51]} Re8 {[%emt 0:01:03]} 12. dxe5 {[%emt 0:00:32]} Nxe5 {[%emt 0:00:06]} 13. Nxe5 {[%emt 0:00:19]} Bxe5 {[%emt 0:00:02]} 14. Rfd1 {[%emt 0:00:12]} Qe7 {[%emt 0:00:34]} 15. Ne2 {[%emt 0:00:27]} b5 {[%emt 0:02:52]} 16. Rac1 {[%emt 0:00:27]} Ng4 {[%emt 0:00:23]} 17. Bd4 {[%emt 0:00:13]} c5 {[%emt 0:00:16]} 18. Bc3 {[%emt 0:00:28]} Bb7 {[%emt 0:00:56]} 19. h3 {[%emt 0:01:14]} Nf6 {[%emt 0:00:03]} 20. Re1 {[%emt 0:01:44]} Rad8 {[%emt 0:00:43]} 21. Ba5 {[%emt 0:00:32]} Bc7 {[%emt 0:00:45]} 22. Bxc7 {[%emt 0:00:33]} Qxc7 {[%emt 0:00:03]} 23. Nc3 {[%emt 0:00:13]} a6 {[%emt 0:00:06]} 24. a4 {[%emt 0:00:07]} Bc6 {[%emt 0:00:28]} 25. Nd5 {[%emt 0:00:53]} Bxd5 {[%emt 0:00:06]} 26. exd5 {[%emt 0:00:04]} Rxe1+ {[%emt 0:00:12]} 27. Rxe1 {[%emt 0:00:03]} Re8 {[%emt 0:00:04]} 28. Rd1 {[%emt 0:00:15]} Qd6 {[%emt 0:00:03]} 29. Qc3 {[%emt 0:01:01]} h5 {[%emt 0:00:16]} 30. Qa5 {[%emt 0:00:30]} Rb8 {[%emt 0:00:41]} 31. axb5 {[%emt 0:00:32]} axb5 {[%emt 0:00:03]} 32. Qa7 {[%emt 0:00:11]} h4 {[%emt 0:00:50]} 33. g4 {[%emt 0:00:19]} b4 {[%emt 0:00:06]} 34. Qa2 {[%emt 0:01:18]} b3 {[%emt 0:00:56]} 35. Qa5 {[%emt 0:00:13]} Nd7 {[%emt 0:00:07]} 36. Qc3 {[%emt 0:00:16]} Qe5 {[%emt 0:00:13]} 37. Qxe5 {[%emt 0:00:52]} Nxe5 {[%emt 0:00:04]} 38. Be4 {[%emt 0:00:15]} g5 {[%emt 0:00:32]} 39. d6 {[%emt 0:00:20]} Rd8 {[%emt 0:00:41]} 40. Rd5 {[%emt 0:00:14]} f6 {[%emt 0:00:02]} 41. Rxc5 {[%emt 0:00:26]} Rxd6 {[%emt 0:00:04]} 42. Bd5+ {[%emt 0:00:08]} Kf8 {[%emt 0:00:02]} 43. Kg2 {[%emt 0:00:17]} Nd3 {[%emt 0:02:23]} 44. Rc8+ {[%emt 0:00:07]} Ke7 {[%emt 0:00:01]} 45. Bxc4 {[%emt 0:00:05]} Nf4+ {[%emt 0:00:02]} 46. Kf3 {[%emt 0:00:04]} Rd2 {[%emt 0:00:04]} 47. Rb8 {[%emt 0:00:11]} Nxh3 {[%emt 0:00:11]} 48. Rb7+ {[%emt 0:00:08]} Kd6 {[%emt 0:00:09]} 49. Rxb3 {[%emt 0:00:04]} Rxf2+ {[%emt 0:00:12]} 50. Ke3 {[%emt 0:00:03]} Rf4 {[%emt 0:00:07]} 51. Be2 {[%emt 0:00:03]} Nf2 {[%emt 0:00:04]} 52. Rb6+ {[%emt 0:00:04]} Kc7 {[%emt 0:00:05]} 53. Re6 {[%emt 0:00:03]} Kd7 {[%emt 0:00:09]} 54. Ra6 {[%emt 0:00:04]} Ke7 {[%emt 0:00:11]} 55. Ra7+ {[%emt 0:00:03]} Kf8 {[%emt 0:00:02]} 56. Ra8+ {[%emt 0:00:13]} Kg7 {[%emt 0:00:04]} 57. Rb8 {[%emt 0:00:09]} Nxg4+ {[%emt 0:00:06]} 58. Bxg4 {[%emt 0:00:04]} Rxg4 {[%emt 0:00:02]} 59. b4 {[%emt 0:00:01]} h3 {[%emt 0:00:05]} 60. b5 {[%emt 0:00:03]} h2 {[%emt 0:00:04]} 0-1

[Event "European Online Club-ch-G 2021"]
[Site "Online"]
[Date "2021.03.27"]
[Round "9.14"]
[White "Piorun, Kacper"]
[Black "Stalmach, Richard"]
[Result "1-0"]
[ECO "A45"]
[WhiteElo "2615"]
[BlackElo "2296"]
[Annotator "ChessBase"]
[PlyCount "57"]
[EventDate "2021.03.27"]
[EventType "team-tourn"]
[EventCountry "NET"]
[SourceTitle "playchess.com"]
[Source "ChessBase"]
[SourceQuality "1"]
[TimeControl "900+5"]

1. d4 {[%emt 0:00:00]} Nf6 {[%emt 0:00:03]} 2. Bg5 {[%emt 0:00:02]} c5 {[%emt 0:00:03]} 3. d5 {[%emt 0:00:02]} Qb6 {[%emt 0:00:14]} 4. Bc1 {[%emt 0:00:12]} d6 {[%emt 0:00:29]} 5. Nc3 {[%emt 0:00:13]} g6 {[%emt 0:00:20]} 6. e4 {[%emt 0:00:02]} Bg7 {[%emt 0:00:05]} 7. Bb5+ {[%emt 0:00:03]} Nbd7 {[%emt 0:00:10]} 8. a4 {[%emt 0:00:03]} O-O {[%emt 0:00:23]} 9. Nf3 {[%emt 0:00:07]} a6 {[%emt 0:00:55]} 10. Be2 {[%emt 0:00:08]} e6 {[%emt 0:01:10]} 11. dxe6 {[%emt 0:00:37]} fxe6 {[%emt 0:00:05]} 12. Bc4 {[%emt 0:00:54]} Re8 {[%emt 0:00:49]} 13. O-O {[%emt 0:00:26]} Ng4 {[%emt 0:00:20]} 14. Ng5 {[%emt 0:01:31]} Nde5 {[%emt 0:00:47]} 15. Be2 {[%emt 0:00:03]} Nf6 {[%emt 0:00:18]} 16. f4 {[%emt 0:00:04]} Nc6 {[%emt 0:00:54]} 17. Bc4 {[%emt 0:01:34]} Qc7 {[%emt 0:01:46]} 18. f5 {[%emt 0:02:39]} gxf5 {[%emt 0:00:59]} 19. exf5 {[%emt 0:00:03]} Nd4 {[%emt 0:00:45]} 20. fxe6 {[%emt 0:00:18]} Bxe6 {[%emt 0:00:10]} 21. Nxe6 {[%emt 0:00:42]} Nxe6 {[%emt 0:00:05]} 22. Bg5 {[%emt 0:00:51]} d5 {[%emt 0:01:04]} 23. Bxf6 {[%emt 0:00:10]} dxc4 {[%emt 0:00:05]} 24. Nd5 {[%emt 0:00:02]} Bxf6 {[%emt 0:01:15]} 25. Nxc7 {[%emt 0:00:09]} Bd4+ {[%emt 0:00:01]} 26. Kh1 {[%emt 0:00:03]} Nxc7 {[%emt 0:00:03]} 27. c3 {[%emt 0:00:03]} Bg7 {[%emt 0:00:04]} 28. Qd7 {[%emt 0:00:06]} Rac8 {[%emt 0:00:20]} 29. Rae1 {[%emt 0:00:07]} 1-0

[Event "European Online Club-ch-G 2021"]
[Site "Online"]
[Date "2021.03.27"]
[Round "9.15"]
[White "Gnojek, Petr"]
[Black "Shchekachev, Andrei"]
[Result "1/2-1/2"]
[ECO "E38"]
[WhiteElo "2267"]
[BlackElo "2515"]
[Annotator "ChessBase"]
[PlyCount "102"]
[EventDate "2021.03.27"]
[EventType "team-tourn"]
[EventCountry "NET"]
[SourceTitle "playchess.com"]
[Source "ChessBase"]
[SourceQuality "1"]
[TimeControl "900+5"]

1. d4 {[%emt 0:00:00]} Nf6 {[%emt 0:00:08]} 2. c4 {[%emt 0:00:02]} e6 {[%emt 0:00:03]} 3. Nc3 {[%emt 0:00:04]} Bb4 {[%emt 0:00:05]} 4. Qc2 {[%emt 0:00:02]} c5 {[%emt 0:00:04]} 5. dxc5 {[%emt 0:00:10]} Qc7 {[%emt 0:00:02]} 6. e3 {[%emt 0:00:30]} a6 {[%emt 0:00:34]} 7. Nf3 {[%emt 0:00:14]} Bxc5 {[%emt 0:00:03]} 8. Bd3 {[%emt 0:00:14]} b6 {[%emt 0:00:11]} 9. O-O {[%emt 0:00:33]} Bb7 {[%emt 0:00:04]} 10. e4 {[%emt 0:00:15]} Nc6 {[%emt 0:00:12]} 11. a3 {[%emt 0:00:13]} Ng4 {[%emt 0:00:39]} 12. g3 {[%emt 0:00:15]} Nce5 {[%emt 0:00:51]} 13. Nxe5 {[%emt 0:00:35]} Qxe5 {[%emt 0:00:04]} 14. Kg2 {[%emt 0:00:48]} Qh5 {[%emt 0:03:57]} 15. h3 {[%emt 0:00:16]} Ne5 {[%emt 0:00:02]} 16. Be2 {[%emt 0:00:09]} Qg6 {[%emt 0:00:02]} 17. Bf4 {[%emt 0:01:59]} Nc6 {[%emt 0:00:38]} 18. Rad1 {[%emt 0:00:17]} O-O {[%emt 0:00:36]} 19. Rxd7 {[%emt 0:00:34]} Nd4 {[%emt 0:00:05]} 20. Qd3 {[%emt 0:00:21]} Nxe2 {[%emt 0:00:09]} 21. Qxe2 {[%emt 0:00:04]} Bc6 {[%emt 0:00:03]} 22. Rd2 {[%emt 0:00:19]} f5 {[%emt 0:03:41]} 23. f3 {[%emt 0:04:00]} fxe4 {[%emt 0:00:14]} 24. fxe4 {[%emt 0:00:02]} e5 {[%emt 0:00:42]} 25. Bxe5 {[%emt 0:00:15]} Rxf1 {[%emt 0:00:06]} 26. Qxf1 {[%emt 0:00:07]} Rf8 {[%emt 0:00:49]} 27. Qd3 {[%emt 0:00:45]} Qg5 {[%emt 0:01:53]} 28. Bd4 {[%emt 0:00:55]} Bd6 {[%emt 0:00:03]} 29. Rf2 {[%emt 0:00:55]} Rxf2+ {[%emt 0:00:09]} 30. Bxf2 {[%emt 0:00:07]} Be5 {[%emt 0:00:02]} 31. Nd5 {[%emt 0:00:31]} Bxb2 {[%emt 0:00:22]} 32. Bxb6 {[%emt 0:00:24]} Qe5 {[%emt 0:00:20]} 33. Bc5 {[%emt 0:00:41]} Kh8 {[%emt 0:00:33]} 34. Qf3 {[%emt 0:00:24]} h6 {[%emt 0:00:12]} 35. Qf8+ {[%emt 0:00:08]} Kh7 {[%emt 0:00:02]} 36. Qf5+ {[%emt 0:00:02]} Qxf5 {[%emt 0:00:15]} 37. exf5 {[%emt 0:00:01]} Ba4 {[%emt 0:00:02]} 38. Bb4 {[%emt 0:00:34]} Bb3 {[%emt 0:00:03]} 39. Nb6 {[%emt 0:00:02]} a5 {[%emt 0:00:05]} 40. Bxa5 {[%emt 0:00:08]} Bxa3 {[%emt 0:00:03]} 41. Nd5 {[%emt 0:00:18]} Bxc4 {[%emt 0:00:04]} 42. Ne3 {[%emt 0:00:01]} Bb5 {[%emt 0:00:04]} 43. Kf3 {[%emt 0:00:05]} Bc5 {[%emt 0:00:02]} 44. Bc3 {[%emt 0:00:08]} Bxe3 {[%emt 0:00:03]} 45. Kxe3 {[%emt 0:00:02]} Bf1 {[%emt 0:00:03]} 46. h4 {[%emt 0:00:05]} Bh3 {[%emt 0:00:04]} 47. Kf4 {[%emt 0:00:03]} h5 {[%emt 0:00:06]} 48. Ke5 {[%emt 0:00:09]} Bg4 {[%emt 0:00:02]} 49. Bd2 {[%emt 0:00:03]} Kg8 {[%emt 0:00:06]} 50. f6 {[%emt 0:00:05]} gxf6+ {[%emt 0:00:03]} 51. Kxf6 {[%emt 0:00:03]} Kh7 {[%emt 0:00:04]} 1/2-1/2